{"text_format":"1","workbook":"xlsx","n_sheets":1,"sheets":["Bildungsmaßnahmen"],"not_rendered":{"charts":0,"images":0,"macros":1,"external_links":0,"defined_names":3,"comments":0,"pivot_tables":0},"unopened":[],"bounds":{"document_bytes":16777216,"sheet_cells":100000,"rows_first":2000,"rows_last":500,"rows_between":2000,"halvings":0,"cell_chars":16384,"cell_head_chars":4096},"cells_cut":0,"cells_raw":0,"read":"whole","date_system":"1900"}

{"sheet":"Bildungsmaßnahmen","index":0,"n_rows":232,"n_cols":22,"rows_kept":232,"cut":false,"hidden":false,"merged":[[4,0,4,21],[2,0,3,21],[0,0,1,21],[6,8,6,13],[6,14,6,16],[7,6,10,6],[7,4,10,4],[7,21,10,21],[231,0,231,2],[231,5,231,12],[231,18,231,19],[215,0,215,24],[224,0,224,24],[230,0,230,2],[230,5,230,12],[7,9,10,9],[7,10,10,10],[7,11,10,11],[7,12,10,12],[7,8,10,8],[9,18,10,18]]}
["Anlage zum Verwendungsnachweis Landesmittel "]
[]
["3.5 a) Bildungsmaßnahmen 2024"]
[]
["Verband eintragen"]
[]
[null,null,null,null,null,null,null,null,"Ausgaben",null,null,null,null,null,"Einnahmen"]
[null,null,null,null,"Anzahl Tage","Anzahl","Ort der Veran-staltung","Anzahl","zuwendungsf. Kosten, Dozentenkosten, Raummieten, Materialien usw. ","Unterkunft, Verpflegung der Teilnehmer "," Unterkunft, Verpflegung der TN nach Landesreisekosten-gesetz","nicht-zuwendungsf. Kosten für Unterkunft, Verpflegung der Teilnehmer ","nicht-zuwendungsf. Kosten (z.B. Deko, Fahrtkosten der TN, Tagegeld, Geschenke)","Ausgaben","Teilnehmer-","sonstige","Einnahmen","anerk.","Förderquote:","Höhe ","Bei Weiterleitung:","Tatsächliche Ausgaben"]
[null,null,null,null,null,"Teiln.",null,"Teiln.-",null,null,null,null,null,"gesamt","Beiträge","Einnahmen","gesamt","Defizit",0.75,"des Zuschusses","Tatsächlich ausgezahlt"]
[null,null,null,null,null,null,null,"Tage",null,null,null,null,null,null,null,null,null,null,"der zuwendungsf. Kosten","(bis max. Defizit)"]
["Nr.","Unterverband/Abteilung","Bildungsmaßnahme/Lehrgangstitel","Datum"]
[1,null,null,null,null,null,null,{"$f":"E12*F12","v":0},null,null,{"$f":"IF(J12 < E12 * F12 * 119, J12, E12 * F12 * 119)","v":0},{"$f":"IF(J12<>K12, J12-K12, 0)","v":0},null,{"$f":"IF(OR(I12=\"\",J12=\"\",M12=\"\"),\"\",SUM(I12,J12,M12))","v":""},null,null,{"$f":"IF(OR(O12=\"\",P12=\"\"),\"\",SUM(O12:P12))","v":""},{"$f":"IFERROR(IF(OR(I12=\"\", K12=\"\", Q12=\"\"), \"\", MAX(SUM(I12,K12)-Q12, 0)), \"\")","v":""},{"$f":"MAX((I12 + K12)*0.75, 0)","v":0},{"$f":"IF(R12<=0,\"keine Berücksichtigung\",IF(S12<R12,S12,R12))","v":0},null,{"$f":"IF(AND(U12>0, U12<T12), U12, T12)","v":0}]
[2,null,null,null,null,null,null,0,null,null,{"$f":"IF(J13 < E13 * F13 * 119, J13, E13 * F13 * 119)","v":0},{"$f":"IF(J13<>K13, J13-K13, 0)","v":0},null,{"$f":"IF(OR(I13=\"\",J13=\"\",M13=\"\"),\"\",SUM(I13,J13,M13))","v":""},null,null,{"$f":"IF(OR(O13=\"\",P13=\"\"),\"\",SUM(O13:P13))","v":""},{"$f":"IFERROR(IF(OR(I13=\"\", K13=\"\", Q13=\"\"), \"\", MAX(SUM(I13,K13)-Q13, 0)), \"\")","v":""},{"$f":"MAX((I13 + K13)*0.75, 0)","v":0},{"$f":"IF(R13<=0,\"keine Berücksichtigung\",IF(S13<R13,S13,R13))","v":0},null,0]
[3,null,null,null,null,null,null,0,null,null,0,0,null,"",null,null,{"$f":"IF(OR(O14=\"\",P14=\"\"),\"\",SUM(O14:P14))","v":""},"",0,0,null,0]
[4,null,null,null,null,null,null,0,null,null,0,0,null,"",null,null,{"$f":"IF(OR(O15=\"\",P15=\"\"),\"\",SUM(O15:P15))","v":""},"",0,0,null,0]
[5,null,null,null,null,null,null,0,null,null,0,0,null,"",null,null,{"$f":"IF(OR(O16=\"\",P16=\"\"),\"\",SUM(O16:P16))","v":""},"",0,0,null,0]
[6,null,null,null,null,null,null,0,null,null,0,0,null,"",null,null,"","",0,0,null,0]
[7,null,null,null,null,null,null,0,null,null,0,0,null,"",null,null,"","",0,0,null,0]
[8,null,null,null,null,null,null,0,null,null,0,0,null,"",null,null,"","",0,0,null,0]
[9,null,null,null,null,null,null,0,null,null,0,0,null,"",null,null,"","",0,0,null,0]
[10,null,null,null,null,null,null,0,null,null,0,0,null,"",null,null,"","",0,0,null,0]
[11,null,null,null,null,null,null,0,null,null,0,0,null,"",null,null,"","",0,0,null,0]
[12,null,null,null,null,null,null,0,null,null,0,0,null,"",null,null,"","",0,0,null,0]
[13,null,null,null,null,null,null,0,null,null,0,0,null,"",null,null,"","",0,0,null,0]
[14,null,null,null,null,null,null,0,null,null,0,0,null,"",null,null,"","",0,0,null,0]
[15,null,null,null,null,null,null,0,null,null,0,0,null,"",null,null,"","",0,0,null,0]
[16,null,null,null,null,null,null,0,null,null,0,0,null,"",null,null,"","",0,0,null,0]
[17,null,null,null,null,null,null,0,null,null,0,0,null,"",null,null,"","",0,0,null,0]
[18,null,null,null,null,null,null,0,null,null,0,0,null,"",null,null,"","",0,0,null,0]
[19,null,null,null,null,null,null,0,null,null,0,0,null,"",null,null,"","",0,0,null,0]
[20,null,null,null,null,null,null,0,null,null,0,0,null,"",null,null,"","",0,0,null,0]
[21,null,null,null,null,null,null,0,null,null,0,0,null,"",null,null,"","",0,0,null,0]
[22,null,null,null,null,null,null,0,null,null,0,0,null,"",null,null,"","",0,0,null,0]
[23,null,null,null,null,null,null,0,null,null,0,0,null,"",null,null,"","",0,0,null,0]
[24,null,null,null,null,null,null,0,null,null,0,0,null,"",null,null,"","",0,0,null,0]
[25,null,null,null,null,null,null,0,null,null,0,0,null,"",null,null,"","",0,0,null,0]
[26,null,null,null,null,null,null,0,null,null,0,0,null,"",null,null,"","",0,0,null,0]
[27,null,null,null,null,null,null,0,null,null,0,0,null,"",null,null,"","",0,0,null,0]
[28,null,null,null,null,null,null,0,null,null,0,0,null,"",null,null,"","",0,0,null,0]
[29,null,null,null,null,null,null,0,null,null,0,0,null,"",null,null,"","",0,0,null,0]
[30,null,null,null,null,null,null,0,null,null,0,0,null,"",null,null,"","",0,0,null,0]
[31,null,null,null,null,null,null,0,null,null,0,0,null,"",null,null,"","",0,0,null,0]
[32,null,null,null,null,null,null,0,null,null,0,0,null,"",null,null,"","",0,0,null,0]
[33,null,null,null,null,null,null,{"$f":"E44*F44","v":0},null,null,0,0,null,"",null,null,"","",0,0,null,0]
[34,null,null,null,null,null,null,0,null,null,0,0,null,"",null,null,"","",0,0,null,0]
[35,null,null,null,null,null,null,0,null,null,0,0,null,"",null,null,"","",0,0,null,0]
[36,null,null,null,null,null,null,0,null,null,0,0,null,"",null,null,"","",0,0,null,0]
[37,null,null,null,null,null,null,0,null,null,0,0,null,"",null,null,"","",0,0,null,0]
[38,null,null,null,null,null,null,0,null,null,0,0,null,"",null,null,"","",0,0,null,0]
[39,null,null,null,null,null,null,0,null,null,0,0,null,"",null,null,"","",0,0,null,0]
[40,null,null,null,null,null,null,0,null,null,0,0,null,"",null,null,"","",0,0,null,0]
[41,null,null,null,null,null,null,0,null,null,0,0,null,"",null,null,"","",0,0,null,0]
[42,null,null,null,null,null,null,0,null,null,0,0,null,"",null,null,"","",0,0,null,0]
[43,null,null,null,null,null,null,0,null,null,0,0,null,"",null,null,"","",0,0,null,0]
[44,null,null,null,null,null,null,0,null,null,0,0,null,"",null,null,"","",0,0,null,0]
[45,null,null,null,null,null,null,0,null,null,0,0,null,"",null,null,"","",0,0,null,0]
[46,null,null,null,null,null,null,0,null,null,0,0,null,"",null,null,"","",0,0,null,0]
[47,null,null,null,null,null,null,0,null,null,0,0,null,"",null,null,"","",0,0,null,0]
[48,null,null,null,null,null,null,0,null,null,0,0,null,"",null,null,"","",0,0,null,0]
[49,null,null,null,null,null,null,0,null,null,0,0,null,"",null,null,"","",0,0,null,0]
[50,null,null,null,null,null,null,0,null,null,0,0,null,"",null,null,"","",0,0,null,0]
[51,null,null,null,null,null,null,0,null,null,0,0,null,"",null,null,"","",0,0,null,0]
[52,null,null,null,null,null,null,0,null,null,0,0,null,"",null,null,"","",0,0,null,0]
[53,null,null,null,null,null,null,0,null,null,0,0,null,"",null,null,"","",0,0,null,0]
[54,null,null," ",null,null,null,0,null,null,0,0,null,"",null,null,"","",0,0,null,0]
[55,null,null,null,null,null,null,0,null,null,0,0,null,"",null,null,"","",0,0,null,0]
[56,null,null,null,null,null,null,0,null,null,0,0,null,"",null,null,"","",0,0,null,0]
[57,null,null,null,null,null,null,0,null,null,0,0,null,"",null,null,"","",0,0,null,0]
[58,null,null,null,null,null,null,0,null,null,0,0,null,"",null,null,"","",0,0,null,0]
[59,null,null,null,null,null,null,0,null,null,0,0,null,"",null,null,"","",0,0,null,0]
[60,null,null,null,null,null,null,0,null,null,0,0,null,"",null,null,"","",0,0,null,0]
[61,null,null,null,null,null,null,0,null,null,0,0,null,"",null,null,"","",0,0,null,0]
[62,null,null,null,null,null,null,0,null,null,0,0,null,"",null,null,"","",0,0,null,0]
[63,null,null,null,null,null,null,0,null,null,0,0,null,"",null,null,"","",0,0,null,0]
[64,null,null,null,null,null,null,0,null,null,0,0,null,"",null,null,"","",0,0,null,0]
[65,null,null,null,null,null,null,{"$f":"E76*F76","v":0},null,null,0,0,null,"",null,null,"","",0,0,null,0]
[66,null,null,null,null,null,null,0,null,null,{"$f":"IF(J77 < E77 * F77 * 119, J77, E77 * F77 * 119)","v":0},{"$f":"IF(J77<>K77, J77-K77, 0)","v":0},null,{"$f":"IF(OR(I77=\"\",J77=\"\",M77=\"\"),\"\",SUM(I77,J77,M77))","v":""},null,null,"",{"$f":"IFERROR(IF(OR(I77=\"\", K77=\"\", Q77=\"\"), \"\", MAX(SUM(I77,K77)-Q77, 0)), \"\")","v":""},{"$f":"MAX((I77 + K77)*0.75, 0)","v":0},{"$f":"IF(R77<=0,\"keine Berücksichtigung\",IF(S77<R77,S77,R77))","v":0},null,{"$f":"IF(AND(U77>0, U77<T77), U77, T77)","v":0}]
[67,null,null,null,null,null,null,0,null,null,0,0,null,"",null,null,"","",0,0,null,0]
[68,null,null,null,null,null,null,0,null,null,0,0,null,"",null,null,"","",0,0,null,0]
[69,null,null,null,null,null,null,0,null,null,0,0,null,"",null,null,{"$f":"IF(OR(O80=\"\",P80=\"\"),\"\",SUM(O80:P80))","v":""},"",0,0,null,0]
[70,null,null,null,null,null,null,0,null,null,0,0,null,"",null,null,"","",0,0,null,0]
[71,null,null,null,null,null,null,0,null,null,0,0,null,"",null,null,"","",0,0,null,0]
[72,null,null,null,null,null,null,0,null,null,0,0,null,"",null,null,"","",0,0,null,0]
[73,null,null,null,null,null,null,0,null,null,0,0,null,"",null,null,"","",0,0,null,0]
[74,null,null,null,null,null,null,0,null,null,0,0,null,"",null,null,"","",0,0,null,0]
[75,null,null,null,null,null,null,0,null,null,0,0,null,"",null,null,"","",0,0,null,0]
[76,null,null,null,null,null,null,0,null,null,0,0,null,"",null,null,"","",0,0,null,0]
[77,null,null,null,null,null,null,0,null,null,0,0,null,"",null,null,"","",0,0,null,0]
[78,null,null,null,null,null,null,0,null,null,0,0,null,"",null,null,"","",0,0,null,0]
[79,null,null,null,null,null,null,0,null,null,0,0,null,"",null,null,"","",0,0,null,0]
[80,null,null,null,null,null,null,0,null,null,0,0,null,"",null,null,"","",0,0,null,0]
[81,null,null,null,null,null,null,0,null,null,0,0,null,"",null,null,"","",0,0,null,0]
[82,null,null,null,null,null,null,0,null,null,0,0,null,"",null,null,"","",0,0,null,0]
[83,null,null,null,null,null,null,0,null,null,0,0,null,"",null,null,"","",0,0,null,0]
[84,null,null,null,null,null,null,0,null,null,0,0,null,"",null,null,"","",0,0,null,0]
[85,null,null,null,null,null,null,0,null,null,0,0,null,"",null,null,"","",0,0,null,0]
[86,null,null,null,null,null,null,0,null,null,0,0,null,"",null,null,"","",0,0,null,0]
[87,null,null,null,null,null,null,0,null,null,0,0,null,"",null,null,"","",0,0,null,0]
[88,null,null,null,null,null,null,0,null,null,0,0,null,"",null,null,"","",0,0,null,0]
[89,null,null,null,null,null,null,0,null,null,0,0,null,"",null,null,"","",0,0,null,0]
[90,null,null,null,null,null,null,0,null,null,0,0,null,"",null,null,"","",0,0,null,0]
[91,null,null,null,null,null,null,0,null,null,0,0,null,"",null,null,"","",0,0,null,0]
[92,null,null,null,null,null,null,0,null,null,0,0,null,"",null,null,"","",0,0,null,0]
[93,null,null,null,null,null,null,0,null,null,0,0,null,"",null,null,"","",0,0,null,0]
[94,null,null,null,null,null,null,0,null,null,0,0,null,"",null,null,"","",0,0,null,0]
[95,null,null,null,null,null,null,0,null,null,0,0,null,"",null,null,"","",0,0,null,0]
[96,null,null,null,null,null,null,0,null,null,0,0,null,"",null,null,"","",0,0,null,0]
[97,null,null,null,null,null,null,{"$f":"E108*F108","v":0},null,null,0,0,null,"",null,null,"","",0,0,null,0]
[98,null,null,null,null,null,null,0,null,null,0,0,null,"",null,null,"","",0,0,null,0]
[99,null,null,null,null,null,null,0,null,null,0,0,null,"",null,null,"","",0,0,null,0]
[100,null,null,null,null,null,null,0,null,null,0,0,null,"",null,null,"","",0,0,null,0]
[101,null,null,null,null,null,null,0,null,null,0,0,null,"",null,null,"","",0,0,null,0]
[102,null,null,null,null,null,null,0,null,null,0,0,null,"",null,null,"","",0,0,null,0]
[103,null,null,null,null,null,null,0,null,null,0,0,null,"",null,null,"","",0,0,null,0]
[104,null,null,null,null,null,null,0,null,null,0,0,null,"",null,null,"","",0,0,null,0]
[105,null,null,null,null,null,null,0,null,null,0,0,null,"",null,null,"","",0,0,null,0]
[106,null,null,null,null,null,null,0,null,null,0,0,null,"",null,null,"","",0,0,null,0]
[107,null,null,null,null,null,null,0,null,null,0,0,null,"",null,null,"","",0,0,null,0]
[108,null,null,null,null,null,null,0,null,null,0,0,null,"",null,null,"","",0,0,null,0]
[109,null,null,null,null,null,null,0,null,null,0,0,null,"",null,null,"","",0,0,null,0]
[110,null,null,null,null,null,null,0,null,null,0,0,null,"",null,null,"","",0,0,null,0]
[111,null,null,null,null,null,null,0,null,null,0,0,null,"",null,null,"","",0,0,null,0]
[112,null,null,null,null,null,null,0,null,null,0,0,null,"",null,null,"","",0,0,null,0]
[113,null,null,null,null,null,null,0,null,null,0,0,null,"",null,null,"","",0,0,null,0]
[114,null,null,null,null,null,null,0,null,null,0,0,null,"",null,null,"","",0,0,null,0]
[115,null,null,null,null,null,null,0,null,null,0,0,null,"",null,null,"","",0,0,null,0]
[116,null,null,null,null,null,null,0,null,null,0,0,null,"",null,null,"","",0,0,null,0]
[117,null,null,null,null,null,null,0,null,null,0,0,null,"",null,null,"","",0,0,null,0]
[118,null,null,null,null,null,null,0,null,null,0,0,null,"",null,null,"","",0,0,null,0]
[119,null,null,null,null,null,null,0,null,null,0,0,null,"",null,null,"","",0,0,null,0]
[120,null,null,null,null,null,null,0,null,null,0,0,null,"",null,null,"","",0,0,null,0]
[121,null,null,null,null,null,null,0,null,null,0,0,null,"",null,null,"","",0,0,null,0]
[122,null,null,null,null,null,null,0,null,null,0,0,null,"",null,null,"","",0,0,null,0]
[123,null,null,null,null,null,null,0,null,null,0,0,null,"",null,null,"","",0,0,null,0]
[124,null,null,null,null,null,null,0,null,null,0,0,null,"",null,null,"","",0,0,null,0]
[125,null,null,null,null,null,null,0,null,null,0,0,null,"",null,null,"","",0,0,null,0]
[126,null,null,null,null,null,null,0,null,null,0,0,null,"",null,null,"","",0,0,null,0]
[127,null,null,null,null,null,null,0,null,null,0,0,null,"",null,null,"","",0,0,null,0]
[128,null,null,null,null,null,null,0,null,null,0,0,null,"",null,null,"","",0,0,null,0]
[129,null,null,null,null,null,null,{"$f":"E140*F140","v":0},null,null,0,0,null,"",null,null,"","",0,0,null,0]
[130,null,null,null,null,null,null,0,null,null,{"$f":"IF(J141 < E141 * F141 * 119, J141, E141 * F141 * 119)","v":0},{"$f":"IF(J141<>K141, J141-K141, 0)","v":0},null,{"$f":"IF(OR(I141=\"\",J141=\"\",M141=\"\"),\"\",SUM(I141,J141,M141))","v":""},null,null,"",{"$f":"IFERROR(IF(OR(I141=\"\", K141=\"\", Q141=\"\"), \"\", MAX(SUM(I141,K141)-Q141, 0)), \"\")","v":""},{"$f":"MAX((I141 + K141)*0.75, 0)","v":0},{"$f":"IF(R141<=0,\"keine Berücksichtigung\",IF(S141<R141,S141,R141))","v":0},null,{"$f":"IF(AND(U141>0, U141<T141), U141, T141)","v":0}]
[131,null,null,null,null,null,null,0,null,null,0,0,null,"",null,null,"","",0,0,null,0]
[132,null,null,null,null,null,null,0,null,null,0,0,null,"",null,null,"","",0,0,null,0]
[133,null,null,null,null,null,null,0,null,null,0,0,null,"",null,null,{"$f":"IF(OR(O144=\"\",P144=\"\"),\"\",SUM(O144:P144))","v":""},"",0,0,null,0]
[134,null,null,null,null,null,null,0,null,null,0,0,null,"",null,null,"","",0,0,null,0]
[135,null,null,null,null,null,null,0,null,null,0,0,null,"",null,null,"","",0,0,null,0]
[136,null,null,null,null,null,null,0,null,null,0,0,null,"",null,null,"","",0,0,null,0]
[137,null,null,null,null,null,null,0,null,null,0,0,null,"",null,null,"","",0,0,null,0]
[138,null,null,null,null,null,null,0,null,null,0,0,null,"",null,null,"","",0,0,null,0]
[139,null,null,null,null,null,null,0,null,null,0,0,null,"",null,null,"","",0,0,null,0]
[140,null,null,null,null,null,null,0,null,null,0,0,null,"",null,null,"","",0,0,null,0]
[141,null,null,null,null,null,null,0,null,null,0,0,null,"",null,null,"","",0,0,null,0]
[142,null,null,null,null,null,null,0,null,null,0,0,null,"",null,null,"","",0,0,null,0]
[143,null,null,null,null,null,null,0,null,null,0,0,null,"",null,null,"","",0,0,null,0]
[144,null,null,null,null,null,null,0,null,null,0,0,null,"",null,null,"","",0,0,null,0]
[145,null,null,null,null,null,null,0,null,null,0,0,null,"",null,null,"","",0,0,null,0]
[146,null,null,null,null,null,null,0,null,null,0,0,null,"",null,null,"","",0,0,null,0]
[147,null,null,null,null,null,null,0,null,null,0,0,null,"",null,null,"","",0,0,null,0]
[148,null,null,null,null,null,null,0,null,null,0,0,null,"",null,null,"","",0,0,null,0]
[149,null,null,null,null,null,null,0,null,null,0,0,null,"",null,null,"","",0,0,null,0]
[150,null,null,null,null,null,null,0,null,null,0,0,null,"",null,null,"","",0,0,null,0]
[151,null,null,null,null,null,null,0,null,null,0,0,null,"",null,null,"","",0,0,null,0]
[152,null,null,null,null,null,null,0,null,null,0,0,null,"",null,null,"","",0,0,null,0]
[153,null,null,null,null,null,null,0,null,null,0,0,null,"",null,null,"","",0,0,null,0]
[154,null,null,null,null,null,null,0,null,null,0,0,null,"",null,null,"","",0,0,null,0]
[155,null,null,null,null,null,null,0,null,null,0,0,null,"",null,null,"","",0,0,null,0]
[156,null,null,null,null,null,null,0,null,null,0,0,null,"",null,null,"","",0,0,null,0]
[157,null,null,null,null,null,null,0,null,null,0,0,null,"",null,null,"","",0,0,null,0]
[158,null,null,null,null,null,null,0,null,null,0,0,null,"",null,null,"","",0,0,null,0]
[159,null,null,null,null,null,null,0,null,null,0,0,null,"",null,null,"","",0,0,null,0]
[160,null,null,null,null,null,null,0,null,null,0,0,null,"",null,null,"","",0,0,null,0]
[161,null,null,null,null,null,null,{"$f":"E172*F172","v":0},null,null,0,0,null,"",null,null,{"$f":"IF(OR(O172=\"\",P172=\"\"),\"\",SUM(O172:P172))","v":""},"",0,0,null,0]
[162,null,null,null,null,null,null,0,null,null,0,0,null,"",null,null,{"$f":"IF(OR(O173=\"\",P173=\"\"),\"\",SUM(O173:P173))","v":""},"",0,0,null,0]
[163,null,null,null,null,null,null,0,null,null,0,0,null,"",null,null,{"$f":"IF(OR(O174=\"\",P174=\"\"),\"\",SUM(O174:P174))","v":""},"",0,0,null,0]
[164,null,null,null,null,null,null,0,null,null,0,0,null,"",null,null,"","",0,0,null,0]
[165,null,null,null,null,null,null,0,null,null,0,0,null,"",null,null,"","",0,0,null,0]
[166,null,null,null,null,null,null,0,null,null,0,0,null,"",null,null,"","",0,0,null,0]
[167,null,null,null,null,null,null,0,null,null,0,0,null,"",null,null,"","",0,0,null,0]
[168,null,null,null,null,null,null,0,null,null,0,0,null,"",null,null,"","",0,0,null,0]
[169,null,null,null,null,null,null,0,null,null,0,0,null,"",null,null,"","",0,0,null,0]
[170,null,null,null,null,null,null,0,null,null,0,0,null,"",null,null,"","",0,0,null,0]
[171,null,null,null,null,null,null,0,null,null,0,0,null,"",null,null,{"$f":"IF(OR(O182=\"\",P182=\"\"),\"\",SUM(O182:P182))","v":""},"",0,0,null,0]
[172,null,null,null,null,null,null,0,null,null,0,0,null,"",null,null,{"$f":"IF(OR(O183=\"\",P183=\"\"),\"\",SUM(O183:P183))","v":""},"",0,0,null,0]
[173,null,null,null,null,null,null,0,null,null,0,0,null,"",null,null,{"$f":"IF(OR(O184=\"\",P184=\"\"),\"\",SUM(O184:P184))","v":""},"",0,0,null,0]
[174,null,null,null,null,null,null,0,null,null,0,0,null,"",null,null,"","",0,0,null,0]
[175,null,null,null,null,null,null,0,null,null,0,0,null,"",null,null,"","",0,0,null,0]
[176,null,null,null,null,null,null,0,null,null,0,0,null,"",null,null,"","",0,0,null,0]
[177,null,null,null,null,null,null,0,null,null,0,0,null,"",null,null,"","",0,0,null,0]
[178,null,null,null,null,null,null,0,null,null,0,0,null,"",null,null,"","",0,0,null,0]
[179,null,null,null,null,null,null,0,null,null,0,0,null,"",null,null,"","",0,0,null,0]
[180,null,null,null,null,null,null,0,null,null,0,0,null,"",null,null,"","",0,0,null,0]
[181,null,null,null,null,null,null,0,null,null,0,0,null,"",null,null,{"$f":"IF(OR(O192=\"\",P192=\"\"),\"\",SUM(O192:P192))","v":""},"",0,0,null,0]
[182,null,null,null,null,null,null,0,null,null,0,0,null,"",null,null,{"$f":"IF(OR(O193=\"\",P193=\"\"),\"\",SUM(O193:P193))","v":""},"",0,0,null,0]
[183,null,null,null,null,null,null,0,null,null,0,0,null,"",null,null,{"$f":"IF(OR(O194=\"\",P194=\"\"),\"\",SUM(O194:P194))","v":""},"",0,0,null,0]
[184,null,null,null,null,null,null,0,null,null,0,0,null,"",null,null,"","",0,0,null,0]
[185,null,null,null,null,null,null,0,null,null,0,0,null,"",null,null,"","",0,0,null,0]
[186,null,null,null,null,null,null,0,null,null,0,0,null,"",null,null,"","",0,0,null,0]
[187,null,null,null,null,null,null,0,null,null,0,0,null,"",null,null,"","",0,0,null,0]
[188,null,null,null,null,null,null,0,null,null,0,0,null,"",null,null,"","",0,0,null,0]
[189,null,null,null,null,null,null,0,null,null,0,0,null,"",null,null,"","",0,0,null,0]
[190,null,null,null,null,null,null,0,null,null,0,0,null,"",null,null,"","",0,0,null,0]
[191,null,null,null,null,null,null,0,null,null,0,0,null,"",null,null,"","",0,0,null,0]
[192,null,null,null,null,null,null,0,null,null,0,0,null,"",null,null,"","",0,0,null,0]
[193,null,null,null,null,null,null,{"$f":"E204*F204","v":0},null,null,0,0,null,"",null,null,"","",0,0,null,0]
[194,null,null,null,null,null,null,0,null,null,{"$f":"IF(J205 < E205 * F205 * 119, J205, E205 * F205 * 119)","v":0},{"$f":"IF(J205<>K205, J205-K205, 0)","v":0},null,{"$f":"IF(OR(I205=\"\",J205=\"\",M205=\"\"),\"\",SUM(I205,J205,M205))","v":""},null,null,"",{"$f":"IFERROR(IF(OR(I205=\"\", K205=\"\", Q205=\"\"), \"\", MAX(SUM(I205,K205)-Q205, 0)), \"\")","v":""},{"$f":"MAX((I205 + K205)*0.75, 0)","v":0},{"$f":"IF(R205<=0,\"keine Berücksichtigung\",IF(S205<R205,S205,R205))","v":0},null,{"$f":"IF(AND(U205>0, U205<T205), U205, T205)","v":0}]
[195,null,null,null,null,null,null,0,null,null,0,0,null,"",null,null,"","",0,0,null,0]
[196,null,null,null,null,null,null,0,null,null,0,0,null,"",null,null,"","",0,0,null,0]
[197,null,null,null,null,null,null,0,null,null,0,0,null,"",null,null,"","",0,0,null,0]
[198,null,null,null,null,null,null,0,null,null,0,0,null,"",null,null,"","",0,0,null,0]
[199,null,null,null,null,null,null,0,null,null,0,0,null,"",null,null,"","",0,0,null,0]
[200,null,null,null,null,null,null,0,null,null,0,0,null,"",null,null,"","",0,0,null,0]
[null,null,null,"Summen ",{"$f":"SUM(E12:E211)","v":0},{"$f":"SUM(F12:F211)","v":0},null,{"$f":"SUM(H12:H211)","v":0},0,0,{"$f":"SUM(K12:K211)","v":0},{"$f":"SUM(L12:L211)","v":0},0,0,0,0,0,0,0,0,0,0]
[]
[]
[]
["Auf die Vorlage von Belegen wird vorläufig verzichtet. Durch die Unterschrift wird u.a. folgenden Punkten ausdrücklich zugestimmt:"]
["* Es wurden ausschließlich förderfähige Kosten in der ersten Spalte der Ausgaben berücksichtigt."]
["* Die aufgeführten Kosten sind durch Original-Kostenbelege nachgewiesen, welche mindestens fünf Jahre vom Antragssteller aufzubewahren sind. "]
["* Der Verzicht auf die Vorlage von Belegen berührt nicht das Recht auf Einsichtnahme durch den Landesrechnungshof, das Ministerium für Wissenschaft, Forschung und Kunst oder den Landesmusikverband."]
["* Seminarlänge auf Basis eines 8h/Tag - mit 1/4 Tag rechnen."]
["* Kosten Unterkunft/Verpflegung: Für Mehrtägige Veranstaltungen gelten die Sätze des Landesreisekostengesetzes. Die Tabelle berücksichtigt das automatisch. Bei Eintagesveranstaltungen dürfen An- und Abreisetag zu 50 % angesetzt werden. "]
["* Ort der Veranstaltung: PLZ oder digital. "]
[]
[]
["Hiermit wird ausdrücklich versichert, dass die auf dieser Seite gemachten Angaben zu den einzelnen Bildungsmaßnahmen wahrheitsgemäß und vollständig sind."]
[]
[]
[]
[]
[]
[]
["Ort, Datum",null,null,null,null,"Unterschrift"]